bitfinex-derivatives/quotes_BTCF0:USTF0_20251110
["timestamp","ask_amount","ask_price","bid_price","bid_amount"]
[1762734221497,0.89051803,105590.0,105580.0,0.00214208]
[1762734226503,0.89051803,105590.0,105580.0,0.14954208]
[1762734226703,0.89051803,105590.0,105580.0,0.00214208]
[1762734228104,0.89051803,105590.0,105580.0,0.14954208]
[1762734231815,0.63843803,105590.0,105580.0,0.24427938]
[1762734232809,0.3628,105590.0,105580.0,0.24427938]
[1762734233211,0.002,105590.0,105580.0,0.48677938]
[1762734233816,0.001,105590.0,105580.0,0.48977358]
[1762734234010,0.001,105590.0,105580.0,0.24627358]
[1762734234209,0.001,105590.0,105580.0,1.09277358]
[1762734234416,0.001,105590.0,105580.0,1.32953358]
[1762734235118,0.001,105590.0,105580.0,1.09277358]
[1762734235512,0.001,105590.0,105580.0,1.32953358]
[1762734235710,0.001,105590.0,105580.0,1.09277358]
[1762734235912,0.001,105590.0,105580.0,1.32953358]
[1762734236813,0.001,105590.0,105580.0,1.24511846]
[1762734237010,0.00319803,105590.0,105580.0,0.63480208]
[1762734237216,0.001,105590.0,105580.0,0.49277948]
[1762734237416,0.001,105590.0,105580.0,0.72953948]
[1762734238218,0.001,105590.0,105580.0,0.49277948]
[1762734238512,0.001,105590.0,105580.0,1.2690389]
[1762734239413,0.001,105590.0,105580.0,1.0322789]
[1762734239618,0.001,105590.0,105580.0,1.2690389]
[1762734239818,0.3608,105600.0,105590.0,0.0947285]
[1762734240022,0.51281,105600.0,105590.0,0.3314885]
[1762734240710,0.3608,105600.0,105590.0,0.72633338]
[1762734240912,0.3618,105600.0,105590.0,0.75368762]
[1762734241416,0.001,105600.0,105590.0,0.75368762]
[1762734241722,0.001,105600.0,105590.0,0.75568762]
[1762734242222,0.001,105600.0,105590.0,0.51892762]
[1762734242418,0.001,105600.0,105590.0,0.75568762]
[1762734242617,0.001,105600.0,105590.0,1.11648762]
[1762734243125,0.001,105600.0,105590.0,0.75568762]
[1762734243423,0.51600803,105600.0,105590.0,0.75568762]
[1762734243617,0.51600803,105600.0,105590.0,0.51892762]
[1762734243815,0.51600803,105600.0,105590.0,0.3929]
[1762734243816,1.04965803,105600.0,105590.0,0.3929]
[1762734244022,1.04965803,105600.0,105590.0,0.4876285]
[1762734244322,0.51600803,105600.0,105590.0,0.4876285]
[1762734244621,0.51381,105600.0,105590.0,0.63997338]
[1762734245018,0.001,105600.0,105590.0,1.23753338]
[1762734245220,0.001,105600.0,105590.0,1.26334105]
[1762734246512,0.001,105600.0,105590.0,1.02658105]
[1762734246920,0.001,105600.0,105590.0,1.26334105]
[1762734247326,0.001,105600.0,105590.0,0.90254105]
[1762734247622,0.001,105600.0,105590.0,1.02658105]
[1762734247820,0.001,105600.0,105590.0,1.26334105]
[1762734248315,0.001,105600.0,105590.0,1.02658105]
[1762734248614,0.15301,105600.0,105590.0,0.93185255]
[1762734248815,1.04965803,105600.0,105590.0,0.02880767]
[1762734249019,1.04965803,105600.0,105590.0,0.003]
[1762734249922,1.04965803,105600.0,105590.0,0.0977284]
[1762734250220,0.68885803,105600.0,105590.0,0.0977284]
[1762734250621,1.04965803,105600.0,105590.0,0.003]
[1762734250813,0.68885803,105600.0,105590.0,0.0977284]
[1762734251012,1.04965803,105600.0,105590.0,0.0977284]
[1762734251213,0.68885803,105600.0,105590.0,0.4585284]
[1762734251414,0.68885803,105600.0,105590.0,0.4843271]
[1762734251613,0.68885803,105600.0,105590.0,0.1235271]
[1762734251924,1.04965803,105600.0,105590.0,0.1235271]
[1762734252117,1.04965803,105600.0,105590.0,0.0287987]
[1762734252715,1.04965803,105600.0,105590.0,0.003]
[1762734252917,1.04965803,105600.0,105590.0,0.0977284]
[1762734253226,1.04965803,105600.0,105590.0,0.003]
[1762734253425,1.04965803,105600.0,105590.0,0.0977284]
[1762734253615,1.04965803,105600.0,105590.0,0.003]
[1762734253923,1.04965803,105600.0,105590.0,0.0977284]
[1762734254809,0.51600803,105600.0,105590.0,0.12354513]
[1762734255015,0.51600803,105600.0,105590.0,0.46394509]
[1762734255216,0.3618,105600.0,105590.0,0.46394509]
[1762734255723,0.51600803,105600.0,105590.0,0.46394509]
[1762734256023,0.15520803,105600.0,105590.0,0.82474509]
[1762734256419,0.15520803,105600.0,105590.0,0.72110513]
[1762734256624,0.15520803,105600.0,105590.0,0.58798509]
[1762734256816,0.68885803,105600.0,105590.0,0.46394509]
[1762734257317,0.68885803,105600.0,105590.0,0.22718509]
[1762734257514,0.68885803,105600.0,105590.0,0.46394509]
[1762734257718,0.15520803,105600.0,105590.0,0.46394509]
[1762734258120,0.001,105600.0,105590.0,0.46394509]
[1762734258423,0.15301,105600.0,105590.0,0.46394509]
[1762734258629,0.15520803,105600.0,105590.0,0.46394509]
[1762734259223,0.68885803,105600.0,105590.0,0.02881673]
[1762734259430,0.68885803,105600.0,105590.0,0.36030493]
[1762734259627,0.68885803,105600.0,105590.0,0.12354493]
[1762734259824,0.68885803,105600.0,105590.0,0.22718489]
[1762734260126,0.001,105600.0,105590.0,0.82474489]
[1762734260321,0.00014208,105610.0,105590.0,1.82578485]
[1762734260517,0.0095,105620.0,105610.0,0.0947103]
[1762734260725,0.06798595,105670.0,105640.0,0.0946834]
[1762734260923,0.27915267,105670.0,105660.0,0.3203735]
[1762734261224,0.62922475,105670.0,105660.0,0.00219803]
[1762734261427,0.62922475,105670.0,105630.0,0.65039918]
[1762734261428,0.68566,105660.0,105630.0,0.6253275]
[1762734261626,1.25798162,105660.0,105650.0,0.10583799]
[1762734261825,1.04719267,105660.0,105650.0,0.20051239]
[1762734262036,0.51731,105680.0,105660.0,0.0946576]
[1762734262336,0.001,105670.0,105660.0,0.48839653]
[1762734262539,0.001,105670.0,105660.0,1.37270456]
[1762734262735,0.00464208,105680.0,105670.0,0.1895665]
[1762734263035,0.00464208,105680.0,105670.0,0.76440355]
[1762734263235,0.58165391,105680.0,105670.0,0.76436024]
[1762734263430,0.58165391,105680.0,105670.0,0.6314402]
[1762734263634,1.11088103,105680.0,105670.0,0.6314402]
[1762734263842,1.110922,105680.0,105670.0,0.6354402]
[1762734264134,0.53491017,105680.0,105670.0,0.6354402]
[1762734264339,0.53491017,105680.0,105670.0,0.83399016]
[1762734264635,0.00568305,105680.0,105670.0,1.20927024]
[1762734264839,0.00568305,105680.0,105670.0,1.32164016]
[1762734265239,0.00568305,105680.0,105670.0,1.11436024]
[1762734265441,1e-07,105680.0,105670.0,1.80899]
[1762734265629,1e-07,105680.0,105670.0,1.71436024]
[1762734265835,0.52922722,105680.0,105670.0,0.87780024]
[1762734266137,0.57601183,105700.0,105690.0,0.0946385]
[1762734266436,0.0121362,105710.0,105690.0,0.95812]
[1762734266632,0.59034606,105710.0,105690.0,1.0727586]
[1762734266836,0.23652002,105700.0,105690.0,0.4554386]
[1762734267039,0.95114606,105710.0,105700.0,0.0946296]
[1762734267227,0.3608,105710.0,105700.0,0.19826956]
[1762734267431,0.90187873,105710.0,105700.0,0.43698759]
[1762734267731,0.90187873,105710.0,105700.0,0.09682763]
[1762734267925,0.90187873,105710.0,105700.0,0.33334763]
[1762734268132,2.13433083,105710.0,105700.0,0.09882763]
[1762734268331,2.13433083,105710.0,105700.0,0.00419803]
[1762734268541,2.13533083,105710.0,105700.0,0.00419803]
[1762734269037,1.89881081,105710.0,105700.0,0.09882783]
[1762734269238,1.89881081,105710.0,105700.0,0.00419803]
[1762734269736,2.13533083,105710.0,105700.0,0.00419803]
[1762734269938,1.89881081,105710.0,105700.0,0.00419803]
[1762734270140,1.89881081,105710.0,105700.0,0.09882783]
[1762734270141,2.13533083,105710.0,105700.0,0.09882783]
[1762734270438,1.89881081,105710.0,105700.0,0.09882783]
[1762734270833,1.89881081,105710.0,105700.0,0.00419803]
[1762734271038,2.13533083,105710.0,105700.0,0.00419803]
[1762734271243,2.13533083,105710.0,105700.0,0.09882783]
[1762734271438,1.90381081,105710.0,105700.0,0.09882783]
[1762734271628,1.90381081,105710.0,105700.0,0.00419803]
[1762734272038,2.14033083,105710.0,105700.0,0.00419803]
[1762734272439,1.90381081,105710.0,105700.0,0.00419803]
[1762734272738,2.14033083,105710.0,105700.0,0.00419803]
[1762734272940,1.90381081,105710.0,105700.0,0.00419803]
[1762734273130,2.14033083,105710.0,105700.0,0.09882783]
[1762734273536,1.90381081,105710.0,105700.0,0.00419803]
[1762734274040,2.14033083,105710.0,105700.0,0.00419803]
[1762734274540,2.24397079,105710.0,105700.0,0.00419803]
[1762734274737,0.27357,105670.0,105660.0,0.60568866]
[1762734275039,0.27357,105670.0,105660.0,0.86366093]
[1762734275040,0.87909885,105670.0,105660.0,0.86366093]
[1762734275234,1.4549686,105670.0,105660.0,0.62706093]
[1762734275634,0.93740242,105670.0,105660.0,0.96730089]
[1762734276129,0.93740242,105670.0,105660.0,0.73070089]
[1762734276334,0.93740242,105670.0,105660.0,0.73570089]
[1762734276646,0.51542208,105680.0,105670.0,0.0946567]
[1762734276839,0.87695475,105680.0,105670.0,0.20049469]
[1762734277148,1.4528245,105680.0,105670.0,0.20049469]
[1762734277646,1.7841866,105680.0,105670.0,0.09685473]
[1762734277850,1.7851866,105680.0,105670.0,0.10085473]
[1762734278839,1.7851866,105680.0,105670.0,0.10385473]
[1762734279043,1.18786658,105680.0,105670.0,0.10385473]
[1762734279345,1.18786658,105680.0,105670.0,0.20749469]
[1762734279849,1.8975466,105680.0,105670.0,0.10385473]
[1762734280237,1.8975466,105680.0,105670.0,0.00919803]
[1762734281749,1.8975466,105680.0,105670.0,0.10385483]
[1762734281950,1.8975466,105680.0,105670.0,0.00919803]
[1762734282152,1.8975466,105680.0,105670.0,0.007]
[1762734282452,1.8975466,105680.0,105670.0,0.00919803]
[1762734284148,1.8975466,105680.0,105670.0,0.10385483]
[1762734284346,1.8975466,105680.0,105670.0,0.00919803]
[1762734284544,1.8975466,105680.0,105670.0,0.10385483]
[1762734285348,0.54029,105670.0,105660.0,0.5302]
[1762734285554,2.25948681,105670.0,105660.0,0.62706373]
[1762734286350,1.54980679,105670.0,105660.0,0.63106373]
[1762734286656,1.78732681,105670.0,105660.0,0.74270369]
[1762734286849,1.55080679,105670.0,105660.0,0.74270369]
[1762734287148,1.55080679,105670.0,105660.0,0.63906373]
[1762734287149,1.42652681,105670.0,105660.0,0.63906373]
[1762734287342,1.42652681,105670.0,105660.0,0.76742271]
[1762734287343,1.55080679,105670.0,105660.0,0.76742271]
[1762734287542,0.3618,105670.0,105660.0,1.07421369]
[1762734287749,0.3618,105670.0,105660.0,1.09892988]
[1762734287951,0.3618,105670.0,105660.0,0.99528992]
[1762734288150,1.12624269,105670.0,105660.0,0.86232988]
[1762734288545,0.59832002,105670.0,105660.0,0.86232988]
[1762734288946,0.61979,105670.0,105660.0,1.09892988]
[1762734289153,0.59905269,105670.0,105660.0,0.86232988]
[1762734289354,0.36253267,105670.0,105660.0,1.09892988]
[1762734289654,1.12624269,105670.0,105660.0,0.86232988]
[1762734290347,0.59832002,105670.0,105660.0,0.86232988]
[1762734290549,0.3618,105670.0,105660.0,1.09892988]
[1762734291746,0.001,105670.0,105660.0,1.09892988]
[1762734292852,0.36094208,105680.0,105670.0,0.1895668]
[1762734293052,0.16219208,105680.0,105670.0,0.35359647]
[1762734293255,0.16219208,105680.0,105670.0,0.59015647]
[1762734293457,0.39746006,105680.0,105670.0,0.55668098]
[1762734293852,0.37599008,105680.0,105670.0,0.32012098]
[1762734294061,0.23752002,105680.0,105670.0,0.32512098]
[1762734294454,0.23752002,105680.0,105670.0,0.56368098]
[1762734294455,0.001,105680.0,105670.0,0.56368098]
[1762734294948,0.00014208,105690.0,105680.0,0.0946478]
[1762734295152,0.57601183,105690.0,105680.0,0.22520198]
[1762734295561,0.81253185,105690.0,105680.0,0.22520198]
[1762734295958,0.5777445,105690.0,105680.0,0.22820198]
[1762734296256,0.5777445,105690.0,105680.0,0.22920198]
[1762734296662,1.1965345,105690.0,105680.0,0.22920198]
[1762734297160,1.43305452,105690.0,105680.0,0.22920198]
[1762734297456,1.1965345,105690.0,105680.0,0.22920198]
[1762734297657,0.23652002,105690.0,105680.0,2.04282743]
[1762734297851,0.005,105710.0,105700.0,0.1895399]
[1762734298058,0.005,105710.0,105700.0,1.09500707]
[1762734298254,0.005,105710.0,105700.0,1.33152707]
[1762734298455,0.15201,105720.0,105710.0,0.19826086]
[1762734298652,0.22178983,105720.0,105710.0,0.85576807]
[1762734299153,0.22178983,105720.0,105710.0,0.61928807]
[1762734299354,0.06977983,105720.0,105710.0,0.58597508]
[1762734299559,9.472e-05,105730.0,105710.0,1.90179906]
[1762734299756,0.36162739,105730.0,105710.0,0.80404611]
[1762734299962,0.86876739,105730.0,105720.0,0.16510051]
[1762734300152,0.86876739,105730.0,105720.0,0.19201473]
[1762734300353,0.86876739,105730.0,105720.0,0.44849473]
[1762734300553,0.23657474,105730.0,105720.0,0.21201473]
[1762734300752,0.59737474,105730.0,105720.0,0.19201473]
[1762734300957,0.36089472,105730.0,105720.0,0.95857473]
[1762734301254,0.23757474,105730.0,105720.0,1.63622969]
[1762734301459,0.00182739,105730.0,105720.0,1.14435354]
[1762734301655,0.36189472,105730.0,105720.0,0.95485854]
[1762734302159,0.59837474,105730.0,105720.0,0.71837854]
[1762734302458,9.472e-05,105730.0,105720.0,0.95485854]
[1762734302657,0.36089472,105730.0,105720.0,1.2594985]
[1762734302851,0.36089472,105730.0,105720.0,1.4489935]
[1762734303157,0.36089472,105730.0,105720.0,1.3544085]
[1762734303454,0.93854722,105730.0,105720.0,1.0894985]
[1762734303653,1.17502724,105730.0,105720.0,0.09881003]
[1762734303854,0.93854722,105730.0,105720.0,0.20244999]
[1762734304061,1.26986932,105730.0,105720.0,0.10783799]
[1762734304266,1.26986932,105730.0,105720.0,0.09881003]
[1762734304456,1.0333893,105730.0,105720.0,0.10783799]
[1762734304656,1.74278932,105730.0,105720.0,0.00419803]
[1762734304965,1.74278932,105730.0,105720.0,0.09880993]
[1762734306954,1.74278932,105730.0,105720.0,0.20244989]
[1762734307159,1.74278932,105730.0,105720.0,0.00419803]
[1762734307763,0.9972721,105720.0,105710.0,0.46226017]
[1762734307961,0.50714,105710.0,105700.0,0.00014208]
[1762734308269,0.50714,105690.0,105680.0,0.27262698]
[1762734308567,1.32431475,105690.0,105680.0,0.20048579]
[1762734308757,1.56079477,105690.0,105680.0,0.20048579]
[1762734308958,1.32431475,105690.0,105680.0,0.20048579]
[1762734309155,1.56079477,105690.0,105680.0,0.09684583]
[1762734309455,1.32431475,105690.0,105680.0,0.00219803]
[1762734309657,1.56079477,105690.0,105680.0,0.00219803]
[1762734309860,1.56279477,105690.0,105680.0,0.12084583]
[1762734310059,2.63591477,105690.0,105680.0,0.024]
[1762734310262,0.66595,105660.0,105650.0,0.00473238]
[1762734310565,0.50714,105650.0,105640.0,0.0946826]
[1762734310859,0.86867267,105650.0,105640.0,0.20052059]
[1762734311070,1.19999477,105650.0,105640.0,0.20052059]
[1762734311370,1.19999477,105650.0,105640.0,0.00219803]
[1762734311665,0.50714,105630.0,105620.0,0.40700583]
[1762734311870,1.22947267,105630.0,105620.0,0.40920386]
[1762734312059,0.66595,105600.0,105590.0,0.62593247]
[1762734312363,0.97669803,105600.0,105590.0,0.72957243]
[1762734312661,0.59736283,105600.0,105590.0,0.72957243]
[1762734312865,0.36308084,105600.0,105590.0,0.98633243]
[1762734313256,0.36308084,105600.0,105590.0,0.74957243]
[1762734313461,1.02947881,105600.0,105590.0,0.75277046]
[1762734313663,0.85290883,105600.0,105590.0,0.75277046]
[1762734313863,0.61642881,105600.0,105590.0,0.74277046]
[1762734314063,0.36352881,105600.0,105590.0,0.75977046]
[1762734314266,1.02947881,105600.0,105590.0,0.75977046]
[1762734314568,0.36352881,105600.0,105590.0,0.74277046]
[1762734314770,0.23720883,105600.0,105590.0,0.76177046]
[1762734315062,1.03047881,105600.0,105590.0,0.74877046]
[1762734315463,1.03047881,105600.0,105590.0,0.6451315]
[1762734315768,1.26595883,105600.0,105590.0,0.74877146]
[1762734315968,1.02947881,105600.0,105590.0,0.73877146]
[1762734316153,1.05947881,105600.0,105590.0,0.75077146]
[1762734316360,0.28362881,105600.0,105590.0,0.76377146]
[1762734316559,0.28662881,105600.0,105590.0,0.75877146]
[1762734316765,0.033,105600.0,105590.0,0.76877146]
[1762734317072,0.03372881,105600.0,105590.0,0.79706327]
[1762734317370,1.06047881,105600.0,105590.0,0.79706327]
[1762734317671,1.06047881,105600.0,105590.0,0.70233487]
[1762734317968,1.06047881,105600.0,105590.0,0.1116615]
[1762734317969,1.05747881,105600.0,105590.0,0.1116615]
[1762734318160,2.45954853,105600.0,105590.0,0.0259331]
[1762734318360,1.85954853,105600.0,105590.0,0.0259331]
[1762734318760,1.85754853,105600.0,105590.0,0.0169331]
[1762734319061,1.85854853,105600.0,105590.0,0.0089331]
[1762734319261,1.85854853,105600.0,105590.0,0.0119331]
[1762734319463,1.85854853,105600.0,105590.0,0.1066615]
[1762734319664,0.69867881,105600.0,105590.0,0.6291315]
[1762734319868,0.69867881,105600.0,105590.0,0.6311315]
[1762734320072,0.93515883,105600.0,105590.0,0.78306327]
[1762734320266,0.63000883,105600.0,105590.0,0.78306327]
[1762734320464,0.3928,105600.0,105590.0,0.78306327]
[1762734320860,0.39352881,105600.0,105590.0,0.78306327]
[1762734321064,1.15232089,105600.0,105590.0,0.78206327]
[1762734321260,1.85954853,105600.0,105590.0,0.0099331]
[1762734321465,1.85954853,105600.0,105590.0,0.1046615]
[1762734321971,1.85854853,105600.0,105590.0,0.1066615]
[1762734322165,1.85854853,105600.0,105590.0,0.3750815]
[1762734322369,1.15332089,105600.0,105590.0,0.6331315]
[1762734322769,1.38980091,105600.0,105590.0,0.6331315]
[1762734322961,1.38980091,105600.0,105590.0,0.5384031]
[1762734323167,1.38980091,105600.0,105590.0,0.0119331]
[1762734323372,1.85854853,105600.0,105590.0,0.0119331]
[1762734324072,1.71114853,105600.0,105590.0,0.4018331]
[1762734324275,1.71114853,105600.0,105590.0,0.4008331]
[1762734324469,1.61630645,105600.0,105590.0,0.4008331]
[1762734324772,1.71114853,105600.0,105590.0,0.4008331]
[1762734324965,1.71114853,105600.0,105590.0,0.3998331]
[1762734325173,1.71114853,105600.0,105590.0,0.3978331]
[1762734325174,1.71314853,105600.0,105590.0,0.3978331]
[1762734325366,1.71314853,105600.0,105590.0,0.4925616]
[1762734325562,1.00792089,105600.0,105590.0,1.0190316]
[1762734325784,1.24440091,105600.0,105590.0,1.17096337]
[1762734326276,1.24440091,105600.0,105590.0,0.3978331]
[1762734326277,1.71314853,105600.0,105590.0,0.3978331]
[1762734326471,1.71534656,105600.0,105590.0,3.1e-06]
[1762734326775,1.08778894,105600.0,105590.0,0.60958427]
[1762734326965,1.08778894,105600.0,105590.0,0.99948427]
[1762734327167,0.23948002,105600.0,105590.0,0.91698427]
[1762734327369,0.003,105600.0,105590.0,0.91698427]
[1762734327570,0.00519803,105600.0,105590.0,0.75698427]
[1762734327767,0.28289803,105600.0,105590.0,0.75698427]
[1762734327967,0.63583011,105600.0,105590.0,0.75698427]
[1762734328272,1.86224775,105600.0,105590.0,0.24286427]
[1762734328577,1.86224775,105600.0,105590.0,0.14813577]
[1762734328771,1.86224775,105600.0,105590.0,0.09546427]
[1762734329472,1.86224775,105600.0,105590.0,0.49982427]
[1762734329968,1.86224775,105600.0,105590.0,0.24286427]
[1762734330571,1.86224775,105600.0,105590.0,0.09546427]
[1762734331779,1.86224775,105600.0,105590.0,0.00073577]
[1762734333078,1.32645775,105600.0,105590.0,3.1e-06]
[1762734337282,0.3313221,105590.0,105560.0,0.00485859]
[1762734337484,1.0507198,105570.0,105560.0,0.00559126]
[1762734337678,0.99363011,105570.0,105560.0,0.00559126]
[1762734337879,1.69885775,105570.0,105560.0,0.00559126]
[1762734338381,1.69885775,105570.0,105560.0,0.01359126]
[1762734338882,1.69885775,105570.0,105560.0,0.00559126]
[1762734339185,1.69885775,105570.0,105560.0,0.01559126]
[1762734339885,1.69885775,105570.0,105560.0,0.02259126]
[1762734340482,1.69885775,105570.0,105550.0,0.00014208]
[1762734340688,1.3883021,105560.0,105550.0,0.00014208]
[1762734340876,1.15402011,105560.0,105550.0,0.00014208]
[1762734341076,1.39050013,105560.0,105550.0,0.00014208]
[1762734341789,1.39061372,105560.0,105550.0,0.01214208]
[1762734342090,1.39061372,105560.0,105550.0,0.10690608]
[1762734342292,1.39061372,105560.0,105550.0,0.11190608]
[1762734342488,1.39061372,105560.0,105550.0,0.62602608]
[1762734342489,1.13538164,105560.0,105550.0,0.62602608]
[1762734342684,1.29577164,105560.0,105550.0,0.36886608]
[1762734342990,1.29877164,105560.0,105550.0,0.11290608]
[1762734343388,1.39361372,105560.0,105550.0,0.01814208]
[1762734344683,0.53579,105540.0,105530.0,0.00473776]
[1762734344892,1.98356773,105540.0,105520.0,0.02503841]
[1762734345189,0.53579,105510.0,105500.0,0.00481026]
[1762734345486,1.82317773,105510.0,105500.0,0.00481026]
[1762734345692,2.05965775,105510.0,105500.0,0.00481026]
[1762734346296,2.05977806,105510.0,105500.0,0.00481026]
[1762734346993,2.06477806,105510.0,105500.0,0.00481026]
[1762734347192,2.06477806,105510.0,105500.0,0.09961926]
[1762734347393,2.06477806,105510.0,105500.0,0.37527926]
[1762734347690,2.06477806,105510.0,105500.0,0.64976926]
[1762734347886,1.14438836,105510.0,105500.0,0.81732926]
[1762734348087,1.14438836,105510.0,105500.0,0.64976926]
[1762734348490,1.14538836,105510.0,105500.0,0.10061926]
[1762734349090,1.14538836,105510.0,105500.0,0.00581026]
[1762734349696,1.14538836,105510.0,105500.0,0.10061926]
[1762734349892,1.14538836,105510.0,105500.0,0.65076926]
[1762734350097,1.14538836,105510.0,105500.0,0.00581026]
[1762734350592,1.14538836,105510.0,105500.0,0.10061926]
[1762734350894,1.14538836,105510.0,105500.0,0.00581026]
[1762734351089,1.14538836,105510.0,105500.0,0.10061926]
[1762734351895,1.14538836,105510.0,105500.0,0.10061936]
[1762734352591,0.5342,105500.0,105490.0,0.55029208]
[1762734352896,0.89719803,105500.0,105490.0,0.64511008]
[1762734353196,1.13367805,105500.0,105490.0,0.79704185]
[1762734353492,0.53639803,105500.0,105490.0,0.64511008]
[1762734353699,0.77587805,105500.0,105490.0,0.75511008]
[1762734353893,0.53939803,105500.0,105490.0,0.90704185]
[1762734354092,0.011,105500.0,105490.0,1.72580185]
[1762734354795,0.24748002,105500.0,105490.0,1.51388026]
[1762734354988,0.011,105500.0,105490.0,1.75084026]
[1762734355190,0.24748002,105500.0,105490.0,1.51388026]
[1762734355396,0.011,105500.0,105490.0,1.75084026]
[1762734355593,0.24748002,105500.0,105490.0,1.51388026]
[1762734355806,0.011,105500.0,105490.0,1.75084026]
[1762734356295,0.011,105500.0,105490.0,2.35084026]
[1762734356598,0.011,105500.0,105490.0,2.41469229]
[1762734359092,0.48444002,105500.0,105490.0,2.17773229]
[1762734359287,0.48444002,105500.0,105490.0,2.1266113]
[1762734359500,0.011,105500.0,105490.0,2.3635713]
[1762734360802,0.004,105500.0,105490.0,2.3725713]
[1762734361099,0.004,105500.0,105490.0,3.07928803]
[1762734361300,0.001,105500.0,105490.0,2.24559354]
[1762734361501,0.004,105500.0,105490.0,2.09919354]
[1762734361701,0.004,105500.0,105490.0,2.92429803]
[1762734361999,0.00012031,105510.0,105490.0,2.92429803]
[1762734362199,2.4,105570.0,105560.0,0.0947551]
[1762734362398,0.3608,105580.0,105570.0,0.0947462]
[1762734362592,0.36299803,105580.0,105570.0,0.44963708]
[1762734362791,2.76299803,105580.0,105570.0,0.44963708]
[1762734362996,2.7608,105580.0,105570.0,0.44963708]
[1762734363198,4.65607303,105580.0,105570.0,0.44963708]
[1762734363405,2.40007301,105580.0,105570.0,0.44963708]
[1762734363594,4.29527303,105580.0,105570.0,0.44963708]
[1762734363794,4.29527303,105580.0,105570.0,0.46209473]
[1762734363995,2.40107301,105580.0,105570.0,0.83189473]
[1762734364304,4.29627303,105580.0,105570.0,0.81942737]
[1762734364501,2.40107301,105580.0,105570.0,0.81942737]
[1762734364704,4.29627303,105580.0,105570.0,0.81942737]
[1762734364901,2.40107301,105580.0,105570.0,0.81942737]
[1762734365097,4.29927303,105580.0,105570.0,0.82342737]
[1762734365411,1.86654451,105580.0,105570.0,0.91814676]
[1762734365598,3.76174453,105580.0,105570.0,0.95134989]
[1762734365903,1.04556631,105580.0,105570.0,0.95134989]
[1762734366100,1.23289233,105580.0,105570.0,0.93907549]
[1762734366303,0.00464208,105590.0,105580.0,0.0947372]
[1762734366604,0.00464208,105590.0,105580.0,1.10752196]
[1762734367306,0.00464208,105590.0,105580.0,1.0826572]
[1762734367496,0.00464208,105590.0,105580.0,1.0906572]
[1762734367700,1.23853441,105590.0,105580.0,1.0906572]
[1762734367907,0.00564208,105590.0,105580.0,1.0906572]
[1762734368202,1.24153441,105590.0,105580.0,1.21723238]
[1762734368408,0.00864208,105590.0,105580.0,1.19236762]
[1762734368610,1.24153441,105590.0,105580.0,1.21723238]
[1762734369009,0.00864208,105590.0,105580.0,1.21723238]
[1762734369212,1.24153441,105590.0,105580.0,1.21723238]
[1762734369509,0.00864208,105590.0,105580.0,1.19236762]
[1762734369709,1.24153441,105590.0,105580.0,1.19236762]
[1762734369911,0.87180676,105610.0,105600.0,0.0947192]
[1762734370208,0.87400479,105610.0,105600.0,0.33672]
[1762734370510,0.96884687,105610.0,105600.0,0.4314392]
[1762734370709,2.2017392,105610.0,105600.0,0.4314392]
[1762734370911,0.96884687,105610.0,105600.0,0.4314392]
[1762734371212,2.2107392,105610.0,105600.0,0.4344392]
[1762734371415,0.97784687,105610.0,105600.0,0.4344392]
[1762734371613,2.2107392,105610.0,105600.0,0.4344392]
[1762734371804,2.2107392,105610.0,105600.0,0.4544392]
[1762734372004,0.97784687,105610.0,105600.0,0.4544392]
[1762734372304,0.97784687,105610.0,105600.0,0.4344392]
[1762734372512,0.97784687,105610.0,105600.0,0.4544392]
[1762734372705,2.2107392,105610.0,105600.0,0.4544392]
[1762734372904,0.97784687,105610.0,105600.0,0.4544392]
[1762734373106,2.2107392,105610.0,105600.0,0.4544392]
[1762734373405,0.97784687,105610.0,105600.0,0.6444392]
[1762734373603,2.2107392,105610.0,105600.0,0.6444392]
[1762734373810,0.97784687,105610.0,105600.0,0.6444392]
[1762734374613,2.2107392,105610.0,105600.0,0.6444392]
[1762734375010,0.97784687,105610.0,105600.0,0.6444392]
[1762734375718,2.2107392,105610.0,105600.0,0.6444392]
[1762734375910,0.97784687,105610.0,105600.0,0.6444392]
[1762734376104,2.2107392,105610.0,105600.0,0.6444392]
[1762734376303,0.97564884,105610.0,105600.0,0.6444392]
[1762734376503,0.97784687,105610.0,105600.0,0.6444392]
[1762734376900,0.63114011,105610.0,105600.0,0.7918392]
[1762734377307,0.99194011,105610.0,105600.0,0.7918392]
[1762734377515,0.63114011,105610.0,105600.0,0.7918392]
[1762734378208,1.86403244,105610.0,105600.0,0.7918392]
[1762734378410,0.62894208,105610.0,105600.0,0.7918392]
[1762734379111,1.86183441,105610.0,105600.0,0.7918392]
[1762734379416,0.63114011,105610.0,105600.0,0.7918392]
[1762734379619,1.86403244,105610.0,105600.0,0.7918392]
[1762734380108,0.68445,105600.0,105590.0,0.00014208]
[1762734380419,0.68445,105580.0,105570.0,0.0947409]
[1762734380618,1.14214803,105580.0,105570.0,0.0947462]
[1762734380911,3.39706036,105580.0,105570.0,0.33584]
[1762734381114,0.15935,105560.0,105550.0,0.0947598]
[1762734381314,2.34092507,105560.0,105550.0,0.5205998]
[1762734381514,1.10803274,105560.0,105550.0,0.7278498]
[1762734381911,1.10803274,105560.0,105550.0,0.9350998]
[1762734382311,2.34092507,105560.0,105550.0,0.94765465]
[1762734382514,1.10803274,105560.0,105550.0,1.19765465]
[1762734382813,1.98012507,105560.0,105550.0,1.58327324]
[1762734383018,0.74723274,105560.0,105550.0,1.22247324]
[1762734383322,1.98012507,105560.0,105550.0,1.22247324]
[1762734383520,0.74723274,105560.0,105550.0,1.22247324]
[1762734383719,1.98012507,105560.0,105550.0,1.22347324]
[1762734383921,0.74923274,105560.0,105550.0,1.22947324]
[1762734384814,1.98212507,105560.0,105550.0,1.22947324]
[1762734385018,1.11003274,105560.0,105550.0,0.98947324]
[1762734385220,2.34292507,105560.0,105550.0,0.98947324]
[1762734385416,1.11003274,105560.0,105550.0,0.97691839]
[1762734385721,2.34292507,105560.0,105550.0,0.97691839]
[1762734385916,1.11003274,105560.0,105550.0,0.97691839]
[1762734386106,2.34292507,105560.0,105550.0,1.18691839]
[1762734386308,1.11003274,105560.0,105550.0,1.20752784]
[1762734387924,0.74703471,105560.0,105550.0,1.56832784]
[1762734388122,1.97992704,105560.0,105550.0,1.66306518]
[1762734388321,0.74703471,105560.0,105550.0,1.66306518]
[1762734388521,1.11003274,105560.0,105550.0,0.98805293]
[1762734388919,0.74923274,105560.0,105550.0,1.19530293]
[1762734389218,2.34292507,105560.0,105550.0,0.98805293]
[1762734389420,0.74923274,105560.0,105550.0,1.19530293]
[1762734389621,1.98212507,105560.0,105550.0,1.55610293]
[1762734389825,1.98212507,105560.0,105550.0,1.19530293]
[1762734390122,0.74923274,105560.0,105550.0,1.19530293]
[1762734390717,0.74923274,105560.0,105550.0,1.24510762]
[1762734390917,0.002,105560.0,105550.0,1.57270449]
[1762734391126,0.002,105560.0,105550.0,1.66744183]
[1762734391127,1.23489233,105560.0,105550.0,1.66744183]